bitfinex/quotes_ETHUSD_20250324
["timestamp","ask_amount","ask_price","bid_price","bid_amount"]
[1742853974750,0.23936692,2085.6,2085.4,4.582]
[1742853975553,5.03416692,2085.6,2085.4,4.582]
[1742853977750,9.82913692,2085.6,2085.4,4.582]
[1742853978045,4.79501,2085.5,2085.2,3.0]
[1742853978246,4.79501,2085.5,2085.3,4.572]
[1742853978429,5.03403693,2085.4,2085.1,3.35874762]
[1742853978630,5.03403693,2085.4,2085.2,4.571]
[1742853979437,4.79569,2085.3,2084.9,3.0]
[1742853979639,4.79569,2085.3,2085.0,4.573]
[1742853979838,0.24004769,2085.2,2085.0,4.573]
[1742853980244,4.79569,2085.3,2085.0,4.573]
[1742853980245,0.23956037,2085.1,2085.0,4.573]
[1742853980448,4.79569,2085.3,2085.0,4.573]
[1742853980833,0.23984539,2085.2,2085.0,4.573]
[1742853981237,4.79569,2085.3,2085.0,4.573]
[1742853981434,0.23972316,2085.1,2085.0,4.573]
[1742853981637,4.79569,2085.3,2085.0,4.573]
[1742853981832,0.23972316,2085.1,2085.0,4.573]
[1742853982038,4.79569,2085.3,2085.0,4.573]
[1742853982255,0.23972316,2085.1,2085.0,4.573]
[1742853982423,4.79569,2085.3,2085.0,4.573]
[1742853982624,0.23972316,2085.1,2085.0,4.573]
[1742853982823,4.79569,2085.3,2085.0,4.573]
[1742853983053,0.23972316,2085.1,2085.0,4.573]
[1742853983525,4.79569,2085.3,2085.0,4.573]
[1742853983725,0.2394534,2085.1,2085.0,4.573]
[1742853983949,4.79569,2085.3,2085.0,4.573]
[1742853984156,0.23958828,2085.1,2085.0,4.573]
[1742853984350,4.79524,2085.4,2085.0,4.573]
[1742853984556,0.2394534,2085.1,2085.0,12.36912]
[1742853984850,4.79524,2085.4,2085.0,12.36912]
[1742853985051,5.54943,2085.5,2085.0,12.36912]
[1742853985052,0.23925108,2085.1,2085.0,12.36912]
[1742853985361,15.59977,2085.6,2085.2,4.7956]
[1742853985535,15.59977,2085.6,2085.1,4.88639]
[1742853985536,17.235187,2085.6,2085.1,4.88639]
[1742853985735,17.235187,2085.6,2085.1,0.0905]
[1742853985736,4.79513,2085.5,2085.1,0.0905]
[1742853985937,4.79512,2085.5,2085.1,4.79592]
[1742853986263,4.79532,2085.4,2085.0,12.36906]
[1742853986446,5.54972,2085.4,2085.0,12.36906]
[1742853987252,4.79549,2085.3,2085.0,7.573]
[1742853987452,4.79584,2085.2,2085.0,7.573]
[1742853988653,4.79548,2085.3,2085.0,7.573]
[1742853989769,0.23992308,2085.2,2085.0,7.573]
[1742853989977,4.79548,2085.3,2085.0,7.573]
[1742853990147,0.23963804,2085.1,2085.0,7.573]
[1742853990467,4.79548,2085.3,2085.0,7.573]
[1742853990632,0.23963804,2085.1,2085.0,7.573]
[1742853990835,4.7957,2085.2,2085.0,4.573]
[1742853991134,0.23997525,2085.1,2085.0,4.573]
[1742853991865,0.23997525,2085.1,2084.8,4.79648]
[1742853992036,0.23997525,2085.1,2084.9,4.559]
[1742853992231,5.83330525,2085.1,2085.0,4.558]
[1742853992636,6.40009625,2085.1,2085.0,4.558]
[1742853994271,4.79624,2085.0,2084.7,0.1223635]
[1742853994488,4.79624,2085.0,2084.8,4.556]
[1742853994688,0.23940511,2084.9,2084.8,4.556]
[1742853994968,4.79573,2085.2,2084.8,14.14924]
[1742853995172,5.59291,2085.3,2084.9,4.79633]
[1742853995486,0.24026027,2085.2,2084.9,4.79633]
[1742853995977,0.23997525,2085.1,2084.9,4.79633]
[1742853996179,4.79551,2085.3,2084.9,4.79633]
[1742853996387,0.23975419,2085.2,2084.9,4.79633]
[1742853996535,4.79551,2085.3,2084.9,4.79633]
[1742853996737,0.23975419,2085.2,2085.0,0.0905]
[1742853997042,4.79551,2085.3,2085.0,0.0905]
[1742853997247,0.21897873,2085.1,2085.0,0.0905]
[1742853997769,4.79551,2085.3,2085.0,0.0905]
[1742853998272,0.21926376,2085.2,2085.0,0.0905]
[1742853998673,4.79551,2085.3,2085.0,0.0905]
[1742853998843,0.21897873,2085.1,2085.0,0.0905]
[1742853999039,4.79551,2085.3,2085.0,0.0905]
[1742853999243,0.21897873,2085.1,2085.0,0.0905]
[1742853999782,0.21897873,2085.1,2085.0,4.88644]
[1742854000069,4.79631,2085.0,2084.8,10.675]
[1742854000276,5.355201,2085.0,2084.8,10.675]
[1742854000474,5.01479859,2084.9,2084.8,6.12]
[1742854000674,5.01479859,2084.9,2084.8,10.676]
[1742854004378,0.21840859,2084.9,2084.8,10.676]
[1742854004579,4.79602,2085.1,2084.8,10.7665]
[1742854004785,0.21703816,2085.0,2084.8,10.7665]
[1742854005493,5.01320816,2085.0,2084.8,4.6465]
[1742854005671,0.21703816,2085.0,2084.8,4.6465]
[1742854007080,0.21703816,2085.0,2084.8,9.44304]
[1742854007278,9.5916,2085.2,2084.8,9.44304]
[1742854007589,11.53433,2085.2,2084.8,9.44304]
[1742854007785,5.01351166,2085.1,2084.8,4.6465]
[1742854007989,4.79624,2085.0,2084.8,4.6465]
[1742854008288,0.21689395,2084.9,2084.8,4.6465]
[1742854009260,4.79598,2085.1,2084.8,4.6465]
[1742854009476,0.21674322,2084.9,2084.8,4.6465]
[1742854009682,6.550423,2085.1,2084.8,4.6465]
[1742854009883,0.21674322,2084.9,2084.8,4.6465]
[1742854010403,11.346513,2085.1,2084.8,4.6465]
[1742854010599,0.21692876,2085.0,2084.8,4.6465]
[1742854011190,5.01311876,2085.0,2084.8,4.6465]
[1742854011370,6.36374594,2085.0,2084.8,4.6465]
[1742854011891,1.56755594,2085.0,2084.8,4.6465]
[1742854012563,0.21692876,2085.0,2084.8,4.6465]
[1742854012762,0.21692876,2085.0,2084.9,4.84435305]
[1742854012977,6.01,2085.3,2084.9,4.88689]
[1742854013182,0.19778941,2085.2,2085.0,4.79615]
[1742854013379,6.01,2085.3,2084.9,4.88689]
[1742854013583,0.19772188,2085.2,2084.9,4.88689]
[1742854013778,10.80551,2085.3,2084.9,4.88689]
[1742854014093,0.19778941,2085.2,2084.9,4.88689]
[1742854014289,0.19778941,2085.2,2084.9,9.68314]
[1742854014465,6.01,2085.3,2084.9,9.68314]
[1742854014664,0.19795225,2085.1,2084.9,9.68314]
[1742854014971,0.19766713,2085.0,2084.9,9.68314]
[1742854015189,6.01,2085.3,2084.9,11.21643068]
[1742854015374,0.19823735,2085.2,2084.9,9.68314]
[1742854015573,6.01,2085.3,2084.9,4.88675]
[1742854015783,0.19823735,2085.2,2084.9,4.88675]
[1742854015984,10.80548,2085.3,2084.9,4.88675]
[1742854016195,0.19838664,2085.2,2084.9,4.88675]
[1742854016374,10.80548,2085.3,2084.9,4.88675]
[1742854016578,0.19838664,2085.2,2084.9,4.88675]
[1742854016773,10.80548,2085.3,2084.9,4.88675]
[1742854016976,0.19838664,2085.2,2084.9,4.88675]
[1742854017175,4.79548,2085.3,2084.9,4.88675]
[1742854017380,0.19838664,2085.2,2084.9,4.88675]
[1742854017579,4.79548,2085.3,2084.9,4.88675]
[1742854017794,0.19838664,2085.2,2084.9,4.88675]
[1742854017980,4.79548,2085.3,2084.9,4.88675]
[1742854018290,0.19838664,2085.2,2084.9,4.88675]
[1742854018685,4.79529,2085.4,2084.9,4.88675]
[1742854018869,0.19807169,2085.1,2084.9,4.88675]
[1742854019065,5.830082,2085.4,2084.9,4.88675]
[1742854019269,0.19778657,2085.0,2084.9,4.88675]
[1742854019469,5.830082,2085.4,2084.9,4.88675]
[1742854019691,0.19778657,2085.0,2084.9,4.88675]
[1742854019893,5.830082,2085.4,2084.9,4.88675]
[1742854020087,0.19778657,2085.0,2084.9,4.88675]
[1742854020282,4.79529,2085.4,2084.9,4.88675]
[1742854020478,0.19784629,2085.0,2084.9,4.88675]
[1742854020701,4.7955,2085.3,2084.9,4.88675]
[1742854020917,0.19784629,2085.0,2084.9,4.88675]
[1742854021404,4.7955,2085.3,2084.9,4.88675]
[1742854021604,0.1984165,2085.2,2084.9,4.88675]
[1742854021804,9.59117,2085.3,2084.9,0.0905]
[1742854022006,0.1984165,2085.2,2084.8,9.0070874]
[1742854022170,11.850891,2085.3,2084.8,9.0070874]
[1742854022494,0.1984165,2085.2,2084.8,9.0070874]
[1742854022692,0.1984165,2085.2,2084.8,4.2104974]
[1742854022896,4.7958,2085.2,2084.8,4.2104974]
[1742854023202,0.19813141,2085.1,2084.9,4.534]
[1742854024601,0.19813141,2085.1,2084.9,9.33038]
[1742854024794,5.6166,2085.3,2084.9,4.534]
[1742854024993,0.19814636,2085.2,2084.9,4.534]
[1742854025173,5.6166,2085.3,2084.9,4.534]
[1742854025372,0.19853461,2085.2,2084.9,4.534]
[1742854025607,6.657785,2085.3,2084.9,4.534]
[1742854025912,0.19853461,2085.2,2084.9,4.534]
[1742854026405,0.19824951,2085.1,2084.9,9.33038]
[1742854026607,5.6166,2085.3,2084.9,9.33038]
[1742854026801,0.19853461,2085.2,2084.9,9.33038]
[1742854027001,5.836685,2085.3,2084.9,9.33038]
[1742854027175,0.19853461,2085.2,2084.9,9.33038]
[1742854027381,5.836685,2085.3,2084.9,9.33038]
[1742854027581,0.19853461,2085.2,2084.9,4.534]
[1742854027791,5.836685,2085.3,2084.9,4.534]
[1742854028008,0.19853461,2085.2,2084.9,4.534]
[1742854028178,4.7955,2085.3,2084.9,4.534]
[1742854028381,0.19853461,2085.2,2084.9,4.534]
[1742854028679,4.7955,2085.3,2084.9,9.33037]
[1742854028999,0.19853461,2085.2,2084.9,4.534]
[1742854029199,4.79525,2085.4,2084.9,9.79581635]
[1742854029399,0.19881969,2085.3,2084.9,14.12636]
[1742854030278,0.19881969,2085.3,2084.9,9.33018]
[1742854030810,0.19881969,2085.3,2084.9,14.12648]
[1742854031017,0.19881969,2085.3,2084.9,9.33018]
[1742854031806,4.99432969,2085.3,2084.9,9.33018]
[1742854032776,4.99432969,2085.3,2084.9,4.534]
[1742854032981,9.79000969,2085.3,2084.9,4.534]
[1742854034310,10.84962066,2085.3,2084.9,4.534]
[1742854034608,6.05399066,2085.3,2084.9,4.534]
[1742854035116,4.79572,2085.2,2084.9,4.534]
[1742854035483,0.19833909,2085.1,2084.9,4.534]
[1742854035936,9.59123,2085.3,2084.9,4.534]
[1742854036218,10.631013,2085.3,2084.9,4.534]
[1742854036515,0.19862419,2085.2,2084.9,4.534]
[1742854037014,0.19833909,2085.1,2084.9,4.534]
[1742854037314,4.79561,2085.3,2084.9,4.534]
[1742854037515,0.19805396,2085.0,2084.9,4.534]
[1742854037688,9.59124,2085.3,2084.9,4.534]
[1742854037888,0.19805396,2085.0,2084.9,4.534]
[1742854038087,9.59124,2085.3,2084.9,4.534]
[1742854038289,0.19805396,2085.0,2084.9,4.534]
[1742854038496,9.59124,2085.3,2084.9,4.534]
[1742854039119,5.77037419,2085.2,2084.9,4.534]
[1742854039321,11.14333161,2085.2,2084.9,4.534]
[1742854039897,6.34741161,2085.2,2084.9,4.534]
[1742854040114,4.99447419,2085.2,2084.9,4.534]
[1742854041018,0.19862419,2085.2,2084.9,4.534]
[1742854041199,0.7759,2085.4,2084.9,4.534]
[1742854041399,0.19890927,2085.3,2085.1,4.79578]
[1742854041689,4.79505,2085.5,2085.1,4.79578]
[1742854041888,0.19835546,2085.2,2085.1,4.79578]
[1742854042095,4.79505,2085.5,2085.1,4.79578]
[1742854042301,0.19835546,2085.2,2085.0,7.84405944]
[1742854042501,4.79536,2085.4,2085.0,3.0]
[1742854042701,0.19807035,2085.1,2085.0,3.0]
[1742854042922,4.79536,2085.4,2085.0,7.79611]
[1742854043092,0.19842866,2085.1,2085.0,7.79611]
[1742854043294,4.79536,2085.4,2085.0,9.508749]
[1742854043626,0.19911827,2085.3,2085.0,12.5921]
[1742854043826,4.79508,2085.5,2085.0,12.5921]
[1742854044018,0.19940332,2085.4,2085.0,12.5921]
[1742854044215,0.19940332,2085.4,2085.1,0.04795394]
[1742854045032,0.19940332,2085.4,2085.0,7.79599]
[1742854045329,4.99469332,2085.4,2085.0,3.0]
[1742854045627,10.84666665,2085.4,2085.0,3.0]
[1742854045824,6.05125665,2085.4,2085.0,3.0]
[1742854046028,4.79555,2085.3,2085.0,3.0]
[1742854046232,0.19890073,2085.2,2085.0,3.0]
[1742854046399,4.79555,2085.3,2085.0,3.0]
[1742854046824,0.19890073,2085.2,2085.0,3.0]
[1742854046996,10.64725333,2085.4,2085.0,3.0]
[1742854047196,0.19918581,2085.3,2085.0,3.0]
[1742854047597,0.19918581,2085.3,2085.0,7.79613]
[1742854048631,0.19918581,2085.3,2085.0,3.0]
[1742854053505,4.79601,2085.1,2084.8,25.349]
[1742854053707,4.79601,2085.1,2084.9,4.506]
[1742854054226,0.18799223,2085.0,2084.9,4.506]
[1742854054427,0.18799223,2085.0,2084.8,25.349]
[1742854054624,4.79625,2085.0,2084.9,4.506]
[1742854054839,4.98424223,2085.0,2084.9,4.506]
[1742854055637,0.18799223,2085.0,2084.9,4.506]
[1742854057119,4.98415223,2085.0,2084.8,25.349]
[1742854057322,4.98415223,2085.0,2084.9,4.508]
[1742854058635,4.79639,2084.9,2084.8,25.349]
[1742854058839,4.98261381,2084.9,2084.8,29.856]
[1742854063514,0.18622381,2084.9,2084.8,29.856]
[1742854064354,4.79617,2085.0,2084.8,29.856]
[1742854064556,0.18622381,2084.9,2084.8,29.856]
[1742854065460,0.18622381,2084.9,2084.8,4.507]
[1742854067864,4.79662,2084.8,2084.7,0.1223635]
[1742854068063,4.79662,2084.8,2084.7,4.6283635]
[1742854068252,4.98111377,2084.8,2084.7,4.6283635]
[1742854074159,4.98111377,2084.8,2084.7,4.6223635]
[1742854082167,4.98111377,2084.8,2084.7,0.1223635]
[1742854082366,6.61529459,2084.8,2084.7,0.1223635]
[1742854089705,6.61529459,2084.8,2084.7,4.6193635]
[1742854091410,6.61529459,2084.8,2084.7,0.1223635]
[1742854091703,7.92929459,2084.8,2084.7,0.1223635]
[1742854091876,10.92929459,2084.8,2084.7,0.1223635]
[1742854095074,10.92929459,2084.8,2084.7,3.5e-06]
[1742854096371,16.93929459,2084.8,2084.7,3.5e-06]
[1742854099682,17.92309954,2084.8,2084.7,3.5e-06]
[1742854106071,22.97809954,2084.8,2084.7,3.5e-06]
[1742854108409,4.798,2084.2,2084.1,0.01]
[1742854108580,11.5057753,2084.2,2084.1,0.01]
[1742854111911,14.5057753,2084.2,2084.1,0.01]
[1742854112114,6.1577753,2084.2,2084.1,0.01]
[1742854112313,0.1477788,2084.2,2084.1,0.01]
[1742854112702,4.79755,2084.4,2084.1,0.01]
[1742854112910,0.13455464,2084.2,2084.1,1.419905]
[1742854113078,4.79755,2084.4,2084.1,1.419905]
[1742854113283,0.13484003,2084.3,2084.1,1.419905]
[1742854114512,0.13484003,2084.3,2084.1,0.01]
[1742854114713,4.798,2084.2,2084.1,0.01]
[1742854115014,0.13455464,2084.2,2084.1,0.01]
[1742854115215,9.59527,2084.4,2084.1,0.01]
[1742854115416,0.13484003,2084.3,2084.1,0.01]
[1742854115613,4.93263003,2084.3,2084.1,0.01]
[1742854117789,0.13484003,2084.3,2084.1,0.01]
[1742854121726,0.12780452,2084.3,2084.1,0.01]
[1742854122803,4.92558452,2084.3,2084.1,0.01]
[1742854123326,9.72353452,2084.3,2084.1,0.01]
[1742854124623,4.92558452,2084.3,2084.1,0.01]
[1742854125427,4.798,2084.2,2084.1,0.01]
[1742854125621,4.92575443,2084.2,2084.1,4.495]
[1742854126217,4.92575443,2084.2,2084.1,0.01]
[1742854126528,7.20300787,2084.2,2084.1,0.01]
[1742854128830,13.21300437,2084.2,2084.1,0.01]
[1742854129330,16.21300437,2084.2,2084.1,0.01]
[1742854132032,15.45810437,2084.2,2084.1,0.01]
[1742854132625,12.45810437,2084.2,2084.1,0.01]
[1742854133829,6.13775093,2084.2,2084.1,0.01]
[1742854134600,0.12775443,2084.2,2084.1,0.01]
[1742854134801,4.79781,2084.3,2084.1,0.01]
[1742854135013,0.12889105,2084.2,2084.1,0.01]
[1742854135331,4.798,2084.2,2084.1,0.01]
[1742854135538,4.92689105,2084.2,2084.1,0.01]
[1742854138738,0.12889105,2084.2,2084.1,0.01]
[1742854139432,4.79781,2084.3,2084.1,0.01]
[1742854139638,0.12889105,2084.2,2084.1,0.01]
[1742854139840,4.79781,2084.3,2084.1,0.01]
[1742854140043,0.12878108,2084.2,2084.1,0.01]
[1742854140244,4.798,2084.2,2084.1,0.01]
[1742854140413,0.12875116,2084.2,2084.1,0.01]
[1742854140612,4.79781,2084.3,2084.1,0.01]
[1742854140814,0.12875116,2084.2,2084.1,0.01]
[1742854141146,4.79781,2084.3,2084.1,0.01]
[1742854141348,0.12875116,2084.2,2084.1,0.01]
[1742854142022,9.59574,2084.3,2084.1,0.01]
[1742854142223,0.12875116,2084.2,2084.1,0.01]
[1742854142424,4.798,2084.2,2084.1,0.01]
[1742854142720,4.92639083,2084.2,2084.1,4.498]
[1742854142944,6.37856891,2084.2,2084.1,4.498]
[1742854144943,4.92639083,2084.2,2084.1,4.498]
[1742854149953,5.47639083,2084.2,2084.1,0.01]
[1742854152138,11.48638733,2084.2,2084.1,0.01]
[1742854152849,12.28048733,2084.2,2084.1,0.01]
[1742854153056,14.46807206,2084.2,2084.1,0.01]
[1742854153850,15.42554032,2084.2,2084.1,0.01]
[1742854157949,14.46807206,2084.2,2084.1,0.01]
[1742854163470,17.46807206,2084.2,2084.1,0.01]
[1742854175383,16.67397206,2084.2,2084.1,0.01]
[1742854175681,14.48638733,2084.2,2084.1,0.01]
[1742854193118,0.12839083,2084.2,2084.1,0.01]
[1742854193287,9.59494,2084.5,2084.1,0.01]
[1742854193629,4.89101365,2084.4,2084.2,4.477]
[1742854193910,4.79762,2084.4,2084.2,4.477]
[1742854195287,9.59537,2084.4,2084.2,4.477]
[1742854195493,4.79777,2084.3,2084.2,4.477]
[1742854196818,4.79777,2084.3,2084.1,0.01]
[1742854196991,6.384276,2084.3,2084.2,4.476]
[1742854199296,12.3942725,2084.3,2084.2,4.476]
[1742854199497,11.3577665,2084.3,2084.2,4.476]
[1742854203705,12.1576665,2084.3,2084.2,4.476]
[1742854205430,8.348,2084.2,2084.1,0.01]
[1742854205596,9.1626,2084.2,2084.1,0.01]
[1742854205796,17.64939515,2084.2,2084.1,0.01]
[1742854206728,10.8079965,2084.2,2084.1,0.01]
[1742854210912,4.798,2084.2,2084.1,0.01]
[1742854211725,5.348,2084.2,2084.1,0.01]
[1742854214732,8.348,2084.2,2084.1,0.01]
[1742854214953,9.1735,2084.2,2084.1,0.01]
[1742854215147,11.65138065,2084.2,2084.1,0.01]
[1742854216819,17.66137715,2084.2,2084.1,0.01]
[1742854219948,10.8079965,2084.2,2084.1,0.01]
[1742854223905,11.3579965,2084.2,2084.1,0.01]
[1742854226155,15.1552965,2084.2,2084.1,0.01]
[1742854227006,16.09612029,2084.2,2084.1,0.01]
[1742854227849,15.1552965,2084.2,2084.1,0.01]
[1742854228062,17.63035715,2084.2,2084.1,0.01]
[1742854228240,10.8079965,2084.2,2084.1,0.01]
[1742854230257,11.3579965,2084.2,2084.1,0.01]
[1742854231853,11.56555519,2084.2,2084.1,0.01]
[1742854239000,12.33895519,2084.2,2084.1,0.01]
[1742854244604,4.79916,2083.7,2083.3,5.16256418]
[1742854244800,0.20501293,2083.6,2083.3,6.25626599]
[1742854245700,0.20501293,2083.6,2083.4,4.477]
[1742854246908,0.20501293,2083.6,2083.4,9.27676]
[1742854247065,4.79876,2083.9,2083.5,1.5533026]
[1742854247966,4.79849,2084.0,2083.5,1.5533026]
[1742854248166,4.79849,2084.0,2083.5,4.79941]
[1742854248778,9.59711,2084.0,2083.5,4.79961]
[1742854248985,4.79849,2084.0,2083.5,4.79961]
[1742854249516,9.59712,2084.0,2083.5,4.79961]
[1742854249678,9.59712,2084.0,2083.6,1.407642]
[1742854249878,4.79849,2084.0,2083.6,1.407642]
[1742854250176,9.59713,2084.0,2083.6,1.407642]
[1742854250913,9.59711,2084.0,2083.6,1.407642]
[1742854251073,4.79849,2084.0,2083.6,1.407642]
[1742854251412,9.59712,2084.0,2083.6,1.407642]
[1742854251617,9.59713,2084.0,2083.6,1.407642]
[1742854251780,4.79877,2083.9,2083.6,1.407642]
[1742854252413,4.79877,2083.9,2083.4,9.27684]
[1742854253919,4.79877,2083.9,2083.4,9.27673]
[1742854254115,4.79877,2083.9,2083.4,14.07644]
[1742854254528,4.79877,2083.9,2083.5,4.79961]
[1742854256214,4.79848,2084.0,2083.5,9.59913]
[1742854256418,4.79848,2084.0,2083.6,1.407613]
[1742854256915,4.7987,2083.9,2083.6,1.407613]
[1742854258608,10.8068765,2084.7,2083.6,1.45560097]
[1742854258778,4.79739,2084.5,2084.0,4.79836]
[1742854258982,4.79739,2084.5,2084.1,4.477]
[1742854259997,4.98090985,2084.4,2084.1,4.477]
[1742854260408,0.18336985,2084.4,2084.1,4.477]
[1742854260914,4.98092985,2084.4,2084.1,4.477]
[1742854261116,0.18336985,2084.4,2084.1,4.477]
[1742854261332,4.7982,2084.2,2083.7,4.79914]
[1742854261538,4.79815,2084.2,2083.8,6.0967457]
[1742854261742,0.18271231,2084.1,2083.8,6.0967457]
[1742854262241,4.98104231,2084.1,2083.8,6.0967457]
[1742854263348,4.98104231,2084.1,2083.8,1.6197457]
[1742854263532,4.98104231,2084.1,2083.9,4.476]
[1742854264109,4.79846,2084.0,2083.9,4.476]
[1742854264522,4.9808929,2084.0,2083.9,4.476]
[1742854264746,6.03665419,2084.0,2083.9,4.476]
[1742854267332,4.79938,2083.7,2083.3,25.368]
[1742854267537,4.79941,2083.6,2083.4,4.476]
[1742854267847,4.97985235,2083.6,2083.4,4.476]
[1742854269053,0.18044235,2083.6,2083.4,4.476]
[1742854270647,4.97984235,2083.6,2083.4,4.476]
[1742854270946,0.18044235,2083.6,2083.4,4.476]
[1742854272168,4.97983235,2083.6,2083.4,4.476]
[1742854272379,5.95773759,2083.6,2083.2,5.16567609]
[1742854272600,11.6147465,2083.5,2083.0,0.55]
[1742854272740,6.5599965,2083.4,2083.0,0.55]
[1742854273059,6.18271602,2083.4,2083.1,4.80053]
[1742854273279,6.18271602,2083.4,2083.1,4.80041]
[1742854273575,10.98258602,2083.4,2083.0,0.55]
[1742854273783,6.18271602,2083.4,2083.2,4.607]
[1742854274141,9.77266952,2083.4,2083.2,4.607]
[1742854274342,9.77262952,2083.4,2083.2,4.607]
[1742854274669,4.97265952,2083.4,2083.2,4.607]
[1742854274856,4.80007,2083.3,2083.2,4.607]
[1742854275174,6.25442547,2083.4,2083.0,0.55]
[1742854275175,4.80053,2083.1,2083.0,0.55]
[1742854275378,4.80031,2083.2,2083.0,5.158]
[1742854275572,4.96780645,2083.1,2083.0,5.158]
[1742854276880,0.16727645,2083.1,2083.0,5.158]
[1742854277253,4.96780645,2083.1,2083.0,5.158]
[1742854277656,5.9446271,2083.1,2083.0,5.158]
[1742854278567,1.1440971,2083.1,2083.0,5.158]
[1742854280444,1.9649971,2083.1,2083.0,0.55]
[1742854280649,6.7655271,2083.1,2083.0,5.152]
[1742854280845,0.16727645,2083.1,2083.0,5.152]
[1742854281284,0.16727645,2083.1,2083.0,10.00076261]
[1742854281576,6.0099965,2083.3,2083.0,5.51464401]
[1742854281778,0.15075535,2083.1,2083.0,5.152]
[1742854281978,11.6310765,2083.3,2083.0,5.152]
[1742854282177,0.15096665,2083.1,2083.0,5.152]
[1742854282346,11.6310765,2083.3,2083.0,5.152]
[1742854282663,0.15124625,2083.2,2083.0,5.152]
[1742854283040,6.8308965,2083.3,2083.0,5.152]
[1742854283245,0.15124625,2083.2,2083.0,5.152]
[1742854283582,6.8308965,2083.3,2083.0,5.152]
[1742854284083,0.15141195,2083.2,2083.0,5.152]
[1742854284288,0.15141195,2083.2,2083.1,5.31573]
[1742854284486,6.0099965,2083.3,2083.1,5.36373015]
[1742854284691,0.13857646,2083.2,2083.1,5.36373015]
[1742854285159,6.0099965,2083.3,2083.1,5.31573]
[1742854285360,0.13857646,2083.2,2083.1,5.31573]
[1742854285778,6.0099965,2083.3,2083.1,5.36373015]
[1742854285945,0.13857646,2083.2,2083.1,5.36373015]
[1742854286342,6.0099965,2083.3,2083.1,5.36373015]
[1742854286651,0.13857646,2083.2,2083.1,5.36373015]
[1742854286852,6.0099965,2083.3,2083.1,5.36373015]
[1742854287053,0.13857646,2083.2,2083.1,5.36373015]
[1742854287455,6.0099965,2083.3,2083.1,5.36373015]
[1742854287655,6.0099965,2083.3,2083.2,1.53163302]
[1742854289377,6.0099965,2083.3,2083.1,0.5152]
[1742854289889,0.13857646,2083.2,2083.1,0.5152]
[1742854290306,4.79965,2083.5,2083.1,0.5152]
[1742854290480,0.13857646,2083.2,2083.0,5.51072855]
[1742854290805,0.13829692,2083.1,2083.0,5.51072855]
[1742854291190,5.57145,2083.5,2083.0,5.51072855]
[1742854291414,0.13933399,2083.4,2083.1,4.80047]
[1742854291561,4.7995,2083.6,2083.1,6.275793]
[1742854291887,0.13954727,2083.5,2083.1,4.84846937]
[1742854292265,0.13954727,2083.5,2083.1,4.80047]
[1742854292492,0.13954727,2083.5,2083.0,10.31611024]
[1742854292688,0.13954727,2083.5,2083.0,15.11673024]
[1742854292902,0.13954727,2083.5,2083.0,10.31601024]
[1742854293104,0.13954727,2083.5,2083.0,15.11661024]
[1742854293302,0.13954727,2083.5,2083.0,10.31599024]
[1742854293506,6.59069865,2083.5,2083.0,10.31599024]
[1742854297409,0.7705,2083.4,2083.0,9.9526]
[1742854297583,0.13978245,2083.3,2083.0,9.9526]
[1742854298109,0.13978245,2083.3,2083.1,4.59]
[1742854299303,5.67609183,2083.3,2083.0,0.55]
[1742854299503,5.67609183,2083.3,2083.2,4.589]
[1742854299702,4.80033,2083.2,2083.0,0.55]
[1742854299901,4.80033,2083.2,2083.1,4.589]
[1742854301595,5.53628938,2083.3,2083.1,4.589]
[1742854301921,10.33654938,2083.3,2083.1,4.589]
[1742854302517,5.53628938,2083.3,2083.1,4.589]
[1742854302813,10.33657938,2083.3,2083.1,4.589]
[1742854303128,4.8003,2083.2,2083.1,4.589]
[1742854303327,4.8003,2083.2,2083.0,0.55]
[1742854303512,5.61173,2083.1,2083.0,0.55]
[1742854303692,5.61173,2083.1,2083.0,5.142]
[1742854304098,5.61173,2083.1,2083.0,0.55]
[1742854305020,5.74793176,2083.1,2083.0,0.55]
[1742854305234,8.06844842,2083.1,2083.0,0.55]
[1742854306817,14.07844492,2083.1,2083.0,0.55]
[1742854307023,17.07844492,2083.1,2083.0,0.55]
[1742854307830,6.95739826,2083.1,2083.0,0.55]
[1742854308035,6.14619826,2083.1,2083.0,0.55]
[1742854310339,10.94672826,2083.1,2083.0,0.55]
[1742854311109,6.14619826,2083.1,2083.0,0.55]
[1742854311549,10.94672826,2083.1,2083.0,0.55]
[1742854311723,12.60291509,2083.1,2083.0,0.55]
[1742854312123,12.60291509,2083.1,2083.0,5.144]
[1742854313350,13.37251509,2083.1,2083.0,5.144]
[1742854314031,13.37251509,2083.1,2083.0,0.55]
[1742854314443,7.80238509,2083.1,2083.0,0.55]
[1742854314754,6.14619826,2083.1,2083.0,0.55]
[1742854315132,10.94672826,2083.1,2083.0,0.55]
[1742854316632,6.14619826,2083.1,2083.0,0.55]
[1742854317124,6.90999826,2083.1,2083.0,0.55]
[1742854318259,11.71052826,2083.1,2083.0,0.55]
[1742854318447,13.84162109,2083.1,2083.0,0.55]
[1742854319336,10.94672826,2083.1,2083.0,0.55]
[1742854319537,6.14619826,2083.1,2083.0,0.55]
[1742854320263,10.94672826,2083.1,2083.0,0.55]
[1742854322577,6.14619826,2083.1,2083.0,0.55]
[1742854322735,10.94672826,2083.1,2083.0,0.55]
[1742854327160,6.14619826,2083.1,2083.0,0.55]
[1742854327361,0.13620176,2083.1,2083.0,0.55]
[1742854327679,6.0099965,2083.4,2083.0,1.0642]
[1742854327838,4.92217876,2083.3,2083.0,1.0642]
[1742854328340,9.72242876,2083.3,2083.0,0.55]
[1742854328541,4.92217876,2083.3,2083.0,0.55]